Cogmind - Beta 15 X1 @@@ ROGUE MODE // 2024.11.09 @ 15:39:38 Player: Terminus Result: Self-destructed Performance ------------- Evolutions (6) 3000 Regions Visited (23) 4600 Robots Destroyed (324) 1620 Value Destroyed (11484) 11484 Prototype IDs (62) 1240 Alien Tech Used (0) 0 Bonus (5511) 5511 TOTAL SCORE: 27455 Bonus ------- High Alert Combat Kills 1045 Follower Combat Kills 2893 Network Hubs Disabled 200 Registered with UFD 300 Met Data Miner 300 Built Enhanced Grunts 300 Met R17 at Cetus 500 Friendly Fire -27 Cogmind --------- Core Integrity 599/1150 Matter 199/300 Energy 29/100 System Corruption 25% Temperature Warm (159) Movement Walking (190) Ox1 Location -4/Factory Parts ------- > --- POWER (3) -------- (None) > --- PROPULSION (5) --- Flexi-carbon Leg Flexi-carbon Leg > --- UTILITY (8) ------ Advanced Heat Sink Experimental Heat Sink Experimental Cooling System High-capacity Storage Unit Experimental Signal Interpreter Improved Medium Armor Plating Advanced Hacking Suite > --- WEAPON (3) ------- Plasma Rifle Advanced Plasma Cannon Enhanced Nova Cannon > --- INVENTORY (20) --- Thunder Leg Thunder Leg Advanced Heat Sink Advanced Coolant Injector Advanced Energy Well (500) Long-range Sensor Array Advanced Particle Charger Advanced Transmission Jammer Advanced Plasma Rifle Advanced Variable Charge Gun Improved Plasma Cutter Peak State ------------ > --- POWER ------------ Light Antimatter Reactor Light Antimatter Reactor Quantum Reactor > --- PROPULSION ------- Thunder Leg Enhanced Flexi-carbon Leg Enhanced Flexi-carbon Leg Myomer Leg Advanced Myomer Leg > --- UTILITY ---------- Experimental Heat Sink Advanced Coolant Injector High-capacity Storage Unit Experimental Signal Interpreter Advanced Targeting Computer Advanced Reaction Control System Centrium Medium Armor Plating Advanced Hacking Suite > --- WEAPON ----------- Precision Phase Gun Precision Phase Gun Enhanced Nova Cannon > --- INVENTORY -------- Thunder Leg Thunder Leg Centrium Leg Advanced Heat Sink Advanced Heat Sink Advanced Energy Well Improved Sensor Array Advanced Particle Charger Advanced Transmission Jammer Plasma Rifle Plasma Rifle Advanced Plasma Rifle Advanced Plasma Rifle Advanced Variable Charge Gun Advanced Plasma Cannon Advanced Plasma Cannon Enhanced Nova Cannon Improved Plasma Cutter [Rating: 144] Favorites ----------- Power Improved Deuterium Engine Engine Improved Deuterium Engine Power Core Neutrino Core Reactor Quantum Reactor Propulsion Advanced Myomer Leg Treads Light Treads Leg Advanced Myomer Leg Utility High-capacity Storage Unit Device Improved Cooling System Storage High-capacity Storage Unit Processor Core Analyzer Hackware Hacking Suite Protection Hardened Medium Armor Plating Weapon Precision Phase Gun Energy Gun Precision Phase Gun Energy Cannon Heavy Ion Cannon Ballistic Gun Autogun Ballistic Cannon Light Cannon Launcher Missile Launcher Slashing Weapon Nanosword Build | -11 -10 -10 -9 -9 -8 -8 -8 -8 -6 -6 -6 -6 -5 -5 -5 -5 -5 -5 -5 -5 -4 -4 -4 ------- Run | Yrd Mat Min Mat Min Mat Sto Rec Scr Fac Low Low Dat Pro Fac Was Fac Ext Cet Arc Hub Fac Was Fac Slots Evolved 12 | . . . 2 . 2 . . . 4 . . . . 2 . . . . . . 2 . . Power 2 | . . . . . . . . . . . . . . 1 . . . . . . 1 . . Propulsion 3 | . . . . . 1 . . . 1 . . . . . . . . . . . 1 . . Utility 6 | . . . 1 . 1 . . . 3 . . . . 1 . . . . . . . . . Weapon 1 | . . . 1 . . . . . . . . . . . . . . . . . . . . Parts Attached 184 | 6 13 2 19 3 16 3 . . 24 2 . . 1 5 2 5 15 9 5 4 4 2 44 Power 33 | 1 3 1 1 . 2 . . . 1 1 . . . 2 1 . 5 2 . . 1 . 12 Engine 14 | 1 3 1 1 . 2 . . . . . . . . 1 1 . 3 . . . . . 1 Core 6 | . . . . . . . . . . 1 . . . 1 . . 1 1 . . . . 2 Reactor 13 | . . . . . . . . . 1 . . . . . . . 1 1 . . 1 . 9 Propulsion 38 | 2 3 . 6 1 4 1 . . 8 . . . . . . . 2 1 . 2 1 . 7 Treads 12 | 2 3 . 6 1 . . . . . . . . . . . . . . . . . . . Leg 26 | . . . . . 4 1 . . 8 . . . . . . . 2 1 . 2 1 . 7 Wheel . | . . . . . . . . . . . . . . . . . . . . . . . . Hover . | . . . . . . . . . . . . . . . . . . . . . . . . Flight . | . . . . . . . . . . . . . . . . . . . . . . . . Utility 66 | 1 3 . 4 . 4 . . . 8 1 . . 1 3 1 3 7 4 3 2 2 2 17 Device 32 | . 2 . 2 . 1 . . . 2 1 . . . 2 1 1 3 . 2 1 1 1 12 Storage 7 | 1 1 . 1 . 1 . . . 2 . . . . . . . . 1 . . . . . Processor 9 | . . . . . . . . . 3 . . . . 1 . . 1 . . 1 . 1 2 Hackware 3 | . . . . . 1 . . . . . . . . . . . . . 1 . 1 . . Protection 15 | . . . 1 . 1 . . . 1 . . . 1 . . 2 3 3 . . . . 3 Artifact . | . . . . . . . . . . . . . . . . . . . . . . . . Weapon 47 | 2 4 1 8 2 6 2 . . 7 . . . . . . 2 1 2 2 . . . 8 Energy Gun 23 | 2 1 . 2 2 1 . . . 6 . . . . . . 2 1 2 2 . . . 2 Energy Cannon 11 | . . . 1 . 4 . . . . . . . . . . . . . . . . . 6 Ballistic Gun 6 | . 1 . 5 . . . . . . . . . . . . . . . . . . . . Ballistic Cannon 3 | . 2 1 . . . . . . . . . . . . . . . . . . . . . Launcher 3 | . . . . . 1 2 . . . . . . . . . . . . . . . . . Special Weapon . | . . . . . . . . . . . . . . . . . . . . . . . . Impact Weapon . | . . . . . . . . . . . . . . . . . . . . . . . . Slashing Weapon 1 | . . . . . . . . . 1 . . . . . . . . . . . . . . Piercing Weapon . | . . . . . . . . . . . . . . . . . . . . . . . . Special Melee Weapon . | . . . . . . . . . . . . . . . . . . . . . . . . Unidentified Prototypes 25 | . . . . . . 2 . . 11 . . . . . . . . 3 1 2 . . 6 Corrupted Parts 1 | . . . . . . . . . . . . . . . . . . . . . 1 . . System Corruption 1 | . . . . . . . . . . . . . . . . . . . . . 1 . . Parts Lost 66 | . 4 1 . . 1 . . . 4 1 . . 1 1 2 2 4 5 . 1 1 1 37 Power 15 | . . 1 . . 1 . . . . . . . . . 1 . . 1 . . . . 11 Propulsion 13 | . 1 . . . . . . . 1 . . . . . . . 1 . . 1 . . 9 Utility 23 | . 1 . . . . . . . 2 1 . . 1 . 1 1 3 1 . . 1 1 10 Weapon 15 | . 2 . . . . . . . 1 . . . . 1 . 1 . 3 . . . . 7 Highest Loss Streak 18 | . 3 1 . . 1 . . . 1 1 . . 1 1 2 1 2 3 . 1 1 1 18 To Critical Strikes 2 | . . . . . . . . . . . . . . . . . . 2 . . . . . Average Backups 17 | 1 7 9 17 20 19 19 20 19 18 18 19 19 18 17 17 18 17 16 18 19 18 18 18 Power 1 | . 1 . 1 2 1 1 1 1 1 2 2 2 2 1 . . 1 1 2 2 1 2 . Propulsion 3 | . 1 3 4 5 2 3 3 2 2 2 3 3 3 3 3 3 3 3 4 3 3 3 2 Utility 7 | . . 1 5 7 9 9 10 10 8 6 6 6 5 5 7 6 6 6 7 7 7 7 6 Weapon 5 | . 3 4 4 4 5 5 5 5 5 7 7 7 7 7 6 6 6 4 4 5 5 5 6 Tool/Special . | . . . . . . . . . . . . . . . . . . . . . . . . Unused Backups 62 | . . 2 4 4 10 6 . 3 8 . . . . 1 . 2 1 . 2 3 2 . 14 Power 4 | . . . . 1 1 . . . 1 . . . . . . . 1 . . . . . . Propulsion 14 | . . 1 . . 4 . . 1 1 . . . . . . . . . 1 1 . . 5 Utility 23 | . . . 3 2 3 2 . 2 2 . . . . 1 . 1 . . 1 1 2 . 3 Weapon 19 | . . 1 1 1 2 4 . . 4 . . . . . . 1 . . . . . . 5 Tool/Special 2 | . . . . . . . . . . . . . . . . . . . . 1 . . 1 Average Slot Usage (%) 98 | . 97 99 99 100 99 99 100 100 94 100 100 83 100 99 99 95 99 100 99 100 99 97 96 Engine 7 | . 14 13 11 11 8 9 9 9 3 . . . . 4 6 10 6 . . . . . . Core 1 | . . . . . . . . . . . 6 6 6 5 3 . . 5 5 5 5 5 2 Reactor 1 | . . . . . . . . . 2 5 . . . . . . 2 4 5 5 10 10 10 Treads 6 | . 26 28 22 22 . . . . . . . . . . . . . . . . . . . Leg 18 | . . . . . 26 27 27 27 21 26 26 26 26 23 23 21 22 23 23 23 25 26 25 Device 11 | . 12 14 11 11 9 9 9 9 6 6 6 6 6 16 22 15 20 15 16 17 14 15 16 Storage 8 | . 14 14 11 11 9 9 9 9 6 6 6 6 6 5 5 5 5 5 5 5 5 5 5 Processor 4 | . . . . . . . . . 19 20 20 20 20 11 10 5 5 11 11 11 10 7 7 Hackware 5 | . . . . . 8 9 9 9 6 6 6 6 6 5 5 5 5 5 5 5 5 5 5 Protection 7 | . . . 10 11 8 9 9 9 5 6 6 6 6 5 . 9 6 6 5 5 5 5 5 Energy Gun 10 | . 6 . 11 20 3 9 9 9 7 20 20 3 20 17 17 16 16 17 17 17 15 15 11 Energy Cannon 7 | . . . . . 22 16 18 18 11 . . . . . . . . . . . . . 3 Ballistic Gun 2 | . 1 . 17 12 . . . . . . . . . . . . . . . . . . . Ballistic Cannon 2 | . 20 28 3 . . . . . . . . . . . . . . . . . . . . Peak Build Rating 144 | 6 10 11 20 21 43 45 43 44 103 99 98 98 98 109 110 104 113 119 122 126 139 137 144 Average Rating 60 | 4 9 10 18 20 39 42 43 43 71 98 98 74 97 106 107 96 108 112 120 121 136 134 128 On Entrance 73 | . 6 10 10 20 21 43 43 43 44 99 98 98 98 98 100 99 104 110 119 122 121 131 137 Naked Turns . | . . . . . . . . . . . . . . . . . . . . . . . . Heaviest Build 124 | 14 22 22 64 64 82 78 78 78 84 80 76 76 76 95 88 104 103 102 102 102 122 122 124 Greatest Support 139 | 40 40 40 40 40 50 50 48 48 106 106 106 106 106 106 106 106 115 115 113 113 137 137 139 Greatest Overweight (x) 2 | . . . 1 1 2 1 1 1 1 . . . . . . 2 1 . . . . . 2 Average Overweight (x) . | . . . . 1 1 1 1 1 . . . . . . . . . . . . . . . Largest Inventory Capacity 20 | 8 10 10 20 20 20 20 20 20 20 20 20 20 20 20 20 20 20 20 20 20 20 20 20 Average Capacity 18 | 6 8 10 17 20 20 20 20 20 20 20 20 20 20 20 20 20 20 20 20 20 20 20 20 Most Carried 20 | 2 10 10 20 20 20 20 20 20 20 20 20 20 20 20 19 20 20 19 20 20 20 19 20 Average Carried 18 | 1 7 9 17 19 19 19 20 19 19 19 20 20 19 18 18 19 18 17 19 19 19 18 18 Final Capacity 20 | 8 10 10 20 20 20 20 20 20 20 20 20 20 20 20 20 20 20 20 20 20 20 20 20 Final Carried 20 | 2 10 9 20 20 20 20 20 20 20 20 20 20 20 20 18 19 18 19 20 20 19 18 11 Class Distribution -------------------- 24% | Scavenger-Tank 19% | Commander-Tank 16% | Tank 13% | Scavenger-Skirmisher 10% | Mutant 7% | Gunner 7% | Scavenger-Gunner Dominant Class ---------------- Mutant | -10/Materials Mutant | -10/Mines Tank | -9/Materials Scavenger-Tank | -9/Mines Scavenger-Tank | -8/Materials Scavenger-Tank | -8/Storage Commander-Tank | -8/Recycling Commander-Tank | -8/Scraptown Scavenger-Gunner | -6/Factory Gunner | -6/Lower Caves Gunner | -6/Lower Caves Mutant | -6/Data Miner Gunner | -5/Proximity Caves Tank | -5/Factory Gunner | -5/Waste Tank | -5/Factory Commander-Tank | -5/Extension Scavenger-Skirmisher | -5/Cetus Scavenger-Skirmisher | -5/Archives Scavenger-Skirmisher | -5/Hub_04(d) Scavenger-Skirmisher | -4/Factory Scavenger-Skirmisher | -4/Waste Scavenger-Skirmisher | -4/Factory Resources | -11 -10 -10 -9 -9 -8 -8 -8 -8 -6 -6 -6 -6 -5 -5 -5 -5 -5 -5 -5 -5 -4 -4 -4 ----------- Run | Yrd Mat Min Mat Min Mat Sto Rec Scr Fac Low Low Dat Pro Fac Was Fac Ext Cet Arc Hub Fac Was Fac Matter Collected 4772 | 191 336 182 886 102 363 93 . . 527 60 7 . 100 48 . 234 458 152 85 52 55 . 841 Remotely . | . . . . . . . . . . . . . . . . . . . . . . . . Salvage Created 13873 | . 805 222 1852 114 1546 629 166 . 1327 261 192 . 168 623 . 679 1598 287 269 603 . . 2532 Parts 665 | . 42 16 104 4 91 31 13 . 82 13 11 . 2 22 . 26 56 11 17 18 . . 106 Haulers Intercepted 30 | . 2 . 6 . 4 6 . . 2 . . . . 1 . 2 . . . 4 . . 3 Recyclers Shooed 19 | . 2 . 4 . 1 . . . 2 . . . . . . 5 1 . . . . . 4 Parts Field Recycled . | . . . . . . . . . . . . . . . . . . . . . . . . Retrieved Matter . | . . . . . . . . . . . . . . . . . . . . . . . . Parts Self-Destructed 26 | . . . . . . . . . . 13 11 . 2 . . . . . . . . . . Prevented 1 | . . . . . . . . . . . . . 1 . . . . . . . . . . Kills | -11 -10 -10 -9 -9 -8 -8 -8 -8 -6 -6 -6 -6 -5 -5 -5 -5 -5 -5 -5 -5 -4 -4 -4 ------- Run | Yrd Mat Min Mat Min Mat Sto Rec Scr Fac Low Low Dat Pro Fac Was Fac Ext Cet Arc Hub Fac Was Fac Combat Hostiles Destroyed 211 | . 15 8 28 2 27 7 3 . 29 9 3 . 3 6 . 7 20 4 1 2 . . 37 Melee 1 | . . . . . . . . . . . . . . . . . . . . . . . 1 Guns 94 | . 5 . 18 2 1 1 1 . 9 9 3 . 2 5 . 5 15 4 1 1 . . 12 Cannons 72 | . 10 8 9 . 20 3 2 . 6 . . . . . . . . . . . . . 14 AOE 31 | . . . . . 4 2 . . 13 . . . . . . 2 3 . . . . . 7 Classes Destroyed 21 | . 6 1 5 . 2 . . . 4 . . . . . . . 2 . . . . . 1 Worker 16 | . 2 . . . . 1 . . 5 . . . . 1 . 1 . . . 3 . . 3 Builder 13 | . . . 2 . 4 . . . 3 . . . . . . 1 . . . 1 . . 2 Hauler 30 | . 2 . 6 . 4 6 . . 2 . . . . 1 . 2 . . . 4 . . 3 Recycler 18 | . 3 . 4 . 2 1 . . . . . . . . . 1 4 . . . . . 3 Mechanic 1 | . . . . . . . . . 1 . . . . . . . . . . . . . . Operator 11 | . . . 2 . . . . . . . . . . 1 . . 2 . 6 . . . . Watcher 24 | . 2 . 4 . 5 . . . 2 . . . . 2 . 2 2 . . 1 . . 4 Swarmer 45 | . 2 . 6 . 7 3 . . 6 8 . . 1 . . 2 4 . . . . . 6 Cutter 4 | . . . . . . . . . . . . . . . . . . . . . . . 4 Saboteur 3 | . . . . . . . . . 1 . . . . . . . 1 . . . . . 1 Grunt 78 | . 13 7 12 . 9 2 . . 5 . 2 . 1 3 . 1 7 . . . . . 16 Brawler 1 | . . . 1 . . . . . . . . . . . . . . . . . . . . Duelist 3 | . . . 1 . 1 . . . . . . . . . . . . . . . . . 1 Protector 2 | . . . . . . . . . 1 . . . . . . . 1 . . . . . . Sentry 40 | . . . 9 2 5 2 3 . 5 1 1 . 1 3 . . 3 . 1 1 . . 3 Demolisher 1 | . . . . . . . . . . . . . . . . . 1 . . . . . . Specialist 8 | . . . . . 4 . . . 4 . . . . . . . . . . . . . . Hunter 4 | . . . . . 1 . . . 1 . . . . . . 2 . . . . . . . Programmer 16 | . . . . . . . . . 6 . . . . . . 2 1 . . 1 . . 6 Behemoth 1 | . . . . . . . . . . . . . . . . . 1 . . . . . . Cetus Guard 4 | . . . . . . . . . . . . . . . . . . 4 . . . . . Assembled 1 | . . 1 . . . . . . . . . . . . . . . . . . . . . Thug 1 | . . . . . . . . . . . . . . . . . 1 . . . . . . Best Kill Streak 16 | . 6 2 4 2 6 4 1 . 16 5 3 . 3 3 . 7 4 4 3 7 . . 13 Combat Bots Only 12 | . 3 2 3 2 6 4 1 . 12 5 3 . 3 2 . 5 4 4 1 2 . . 9 Max Kills in Single Turn 4 | . 1 1 2 1 2 2 1 . 4 2 1 . 1 1 . 3 2 1 1 1 . . 3 Gunslinging 1 | . . . . . . . . . . 1 . . . . . . . . . . . . . Exploded 3 | . . . . . 2 2 . . 3 . . . . . . 2 2 . . . . . 3 Melee 1 | . . . . . . . . . . . . . . . . . . . . . . . 1 Uniques/NPCs Destroyed . | . . . . . . . . . . . . . . . . . . . . . . . . Combat | -11 -10 -10 -9 -9 -8 -8 -8 -8 -6 -6 -6 -6 -5 -5 -5 -5 -5 -5 -5 -5 -4 -4 -4 -------- Run | Yrd Mat Min Mat Min Mat Sto Rec Scr Fac Low Low Dat Pro Fac Was Fac Ext Cet Arc Hub Fac Was Fac Hostile Shots Fired 1213 | . 70 10 66 20 75 18 . . 182 93 26 . 17 47 . 44 86 33 . 4 3 . 419 Missed 419 | . 13 1 20 8 24 5 . . 79 42 15 . 3 12 . 13 33 11 . 3 . . 137 Damage Taken 14072 | . 819 160 614 179 783 150 . . 1314 432 147 . 306 587 330 402 1016 589 . 118 216 286 5624 Core 1502 | . 146 6 104 . 111 . . . 134 48 12 . 42 72 . 57 143 76 . . . 63 488 Absorbed by Shields 1051 | . . . . . . . . . . . . . . 179 76 150 301 . . . . . 345 Regen/Repaired (Parts) 848 | . . . 200 . 389 216 . . 43 . . . . . . . . . . . . . . Core Remaining (%) 71 | 100 . 39 . 74 . . . 79 . . . . 72 . . . . . . 65 . . . Volleys Fired 688 | . 60 14 101 6 71 25 3 . 58 30 12 . 8 23 5 31 50 10 16 15 . 8 142 Largest 3 | . 2 2 3 3 3 3 3 . 3 3 3 . 3 3 3 3 3 3 3 3 . 3 3 Hottest 316 | . 115 60 140 135 198 191 191 . 282 282 282 . 282 282 276 282 282 282 276 276 . 276 316 Shots Fired 1750 | . 106 28 298 18 183 64 9 . 137 82 37 . 24 65 14 79 141 30 45 45 . 23 322 Gun 1172 | . 60 . 228 18 25 24 3 . 54 82 37 . 24 65 14 77 138 30 45 45 . 23 180 Cannon 546 | . 46 28 70 . 151 39 6 . 74 . . . . . . . . . . . . . 132 Launcher 32 | . . . . . 7 1 . . 9 . . . . . . 2 3 . . . . . 10 Special . | . . . . . . . . . . . . . . . . . . . . . . . . Kinetic 273 | . 55 28 179 6 5 . . . . . . . . . . . . . . . . . . Thermal 1445 | . 51 . 119 12 171 63 9 . 128 82 37 . 24 65 14 77 138 30 45 45 . 23 312 Explosive 32 | . . . . . 7 1 . . 9 . . . . . . 2 3 . . . . . 10 Electromagnetic . | . . . . . . . . . . . . . . . . . . . . . . . . Robot Hit Streak 43 | . 10 4 14 12 14 8 7 . 32 16 27 . 29 23 16 31 33 21 12 12 . 8 43 Robot Miss Streak 5 | . 3 3 5 1 5 3 1 . 3 1 . . 1 1 . 1 1 1 2 1 . 1 3 Penetration Max . | . . . . . . . . . . . . . . . . . . . . . . . . Secondary Targets 14 | . 1 . . 1 . . . . . 3 1 . 1 1 . 1 3 . 1 . . . 1 Max Gunslinging Chain 1 | . 1 . . 1 . . . . . 1 1 . 1 1 . 1 1 . 1 . . . 1 Shots Hit Robots 1066 | . 63 15 185 16 100 39 5 . 82 22 18 . 16 52 1 53 114 29 32 30 . 8 186 Core Hits 517 | . 31 8 72 4 54 19 3 . 70 10 5 . 4 21 . 23 58 15 15 12 . 1 92 Critical Kills 3 | . . . . . 2 1 . . . . . . . . . . . . . . . . . Critical Parts Destroyed . | . . . . . . . . . . . . . . . . . . . . . . . . Critical Strikes 68 | . 2 2 9 1 3 3 1 . 2 4 . . 2 3 . 5 12 4 3 2 . . 10 Burn 59 | . 1 . 6 1 1 2 1 . 2 4 . . 2 3 . 5 12 4 3 2 . . 10 Meltdown 3 | . . . . . 2 1 . . . . . . . . . . . . . . . . . Blast 6 | . 1 2 3 . . . . . . . . . . . . . . . . . . . . Melee Attacks . | . . . . . . . . . . . . . . . . . . . . . . . . Impact . | . . . . . . . . . . . . . . . . . . . . . . . . Slashing . | . . . . . . . . . . . . . . . . . . . . . . . . Piercing . | . . . . . . . . . . . . . . . . . . . . . . . . Sneak Attacks . | . . . . . . . . . . . . . . . . . . . . . . . . Combat Hostiles . | . . . . . . . . . . . . . . . . . . . . . . . . Follow-up Attacks . | . . . . . . . . . . . . . . . . . . . . . . . . Damage Inflicted 34118 | . 1082 310 2952 251 3202 1241 169 . 4766 627 512 . 448 1511 . 2069 3637 845 907 1144 . 223 8222 Guns 19153 | . 572 . 2108 250 235 394 66 . 958 627 512 . 448 1473 . 1577 3266 845 907 917 . 223 3775 Cannons 8236 | . 378 298 826 . 2330 606 86 . 1243 . . . . . . . . . . . . . 2469 Explosions 6192 | . 114 . . . 615 202 . . 2513 . . . . . . 483 338 . . 33 . . 1894 Melee . | . . . . . . . . . . . . . . . . . . . . . . . . Ramming 537 | . 18 12 18 1 22 39 17 . 52 . . . . 38 . 9 33 . . 194 . . 84 Kinetic 2589 | . 430 298 1746 82 33 . . . . . . . . . . . . . . . . . . Thermal 25297 | . 520 . 1188 168 2532 1000 152 . 2201 627 512 . 448 1473 . 1577 3266 845 907 917 . 223 6741 Explosive 5662 | . 114 . . . 615 202 . . 2513 . . . . . . 483 338 . . . . . 1397 Electromagnetic 33 | . . . . . . . . . . . . . . . . . . . . 33 . . . Impact . | . . . . . . . . . . . . . . . . . . . . . . . . Slashing . | . . . . . . . . . . . . . . . . . . . . . . . . Piercing . | . . . . . . . . . . . . . . . . . . . . . . . . Highest Corruption 25 | . . . . . . . 1 1 4 4 4 4 4 . 15 16 16 7 7 . 1 16 25 Average Corruption 10 | . . . . . . . 1 1 2 4 4 4 4 . 9 15 12 7 3 . 1 10 20 Corruption Purged 17 | . . . . . . . . . . . . . . . . . 10 . 7 . . . . Corruption Blocked . | . . . . . . . . . . . . . . . . . . . . . . . . Effects 282 | . . . . . . . 4 . 13 13 8 3 14 . 4 23 57 11 5 . 1 7 119 Message Errors 55 | . . . . . . . 1 . 4 . 1 . 4 . . 4 7 2 2 . . 1 29 Matter Fused 67 | . . . . . . . . . 3 5 1 1 9 . 3 3 14 3 1 . . 3 21 Heat Flow Errors 36 | . . . . . . . 1 . 3 . 1 1 1 . . 2 9 1 . . . . 17 Energy Discharges 40 | . . . . . . . 1 . 1 3 3 1 . . . 4 9 3 1 . 1 . 13 Parts Rejected 3 | . . . . . . . . . . . . . . . . . . 1 . . . . 2 Parts Fused 1 | . . . . . . . . . . . . . . . . . 1 . . . . . . Data Loss (minor) 28 | . . . . . . . . . . 1 1 . . . . 3 8 1 . . . 1 13 Data Loss (major) 11 | . . . . . . . 1 . . 1 . . . . . 1 3 . . . . . 5 Misfires 12 | . . . . . . . . . 1 . 1 . . . 1 2 2 . . . . 1 4 Alerts 3 | . . . . . . . . . 1 1 . . . . . 1 . . . . . . . Misdirections 3 | . . . . . . . . . . . . . . . . . . . . . . 1 2 Weapon Failures 23 | . . . . . . . . . . 2 . . . . . 3 4 . 1 . . . 13 Overload Shots . | . . . . . . . . . . . . . . . . . . . . . . . . Overflow Damage 760 | . 38 7 8 . 80 61 . . 153 . . . . . . 80 75 . . 18 . . 240 Projectiles 254 | . . 7 8 . 46 . . . 122 . . . . . . . . . . . . . 71 Explosions 462 | . 38 . . . 34 61 . . 31 . . . . . . 80 64 . . . . . 154 Melee 44 | . . . . . . . . . . . . . . . . . 11 . . 18 . . 15 Knockbacks 8 | . 2 1 3 . . . . . . . . . . 1 . 1 . . . . . . . Impact 2 | . . . . . . . . . . . . . . 1 . 1 . . . . . . . Kinetic 6 | . 2 1 3 . . . . . . . . . . . . . . . . . . . . Secondary . | . . . . . . . . . . . . . . . . . . . . . . . . Self-Inflicted Damage 625 | . 86 . . . 36 . . . . . . . . . . 6 . . . 95 . . 402 Shots 10 | . 1 . . . 1 . . . . . . . . . . 1 . . . 1 . . 6 Rammed 9 | . 1 3 4 1 . . . . . . . . . . . . . . . . . . . Targets Rammed 45 | . 3 3 4 1 4 7 2 . 4 . . . . 4 . 1 1 . . 8 . . 3 Kicked 34 | . . . . . 4 7 2 . 4 . . . . 4 . 1 1 . . 8 . . 3 Crushed 2 | . 2 . . . . . . . . . . . . . . . . . . . . . . Highest Temperature 381 | . 336 . 295 180 358 134 62 . 208 339 360 140 381 211 . 313 365 172 309 219 . 228 337 Average Temperature 81 | . 137 . 45 88 90 50 28 . 39 94 116 71 156 85 . 91 65 54 104 35 . 100 91 Received Heat Transfer 3143 | . 402 36 183 81 378 45 . . 174 72 63 . 108 172 . 12 468 18 . 9 . . 922 Effects 3 | . . . . . . . . . . . . . 1 . . . 1 . 1 . . . . Shutdowns 2 | . . . . . . . . . . . . . 1 . . . 1 . . . . . . Energy Bleed 1 | . . . . . . . . . . . . . . . . . . . 1 . . . . Siege Activations . | . . . . . . . . . . . . . . . . . . . . . . . . Martial Activations . | . . . . . . . . . . . . . . . . . . . . . . . . Shielding Activations . | . . . . . . . . . . . . . . . . . . . . . . . . Robots Disrupted . | . . . . . . . . . . . . . . . . . . . . . . . . Combat Hostiles . | . . . . . . . . . . . . . . . . . . . . . . . . Robots Corrupted 3 | . . . . . . . . . . . . . . . . . . . . 3 . . . Combat Hostiles . | . . . . . . . . . . . . . . . . . . . . . . . . Parts Fried 4 | . . . . . . . . . . . . . . . . . . . . 3 . . 1 Impact Corruptions 6 | . . . . . . . . . . . . . . . . . 1 . . 4 . . 1 Robots Melted 15 | . . . 1 . 2 1 . . 1 . . . 1 1 . . 2 . . 2 . . 4 Combat Hostiles 13 | . . . 1 . 2 1 . . 1 . . . 1 1 . . 2 . . 1 . . 3 Parts Melted 103 | . 4 . 5 1 14 7 . . 7 2 . . 3 7 . 11 7 2 4 5 . . 24 Heat Transferred 40292 | . 1443 . 3441 481 3774 1665 296 . 3219 1110 666 . 740 2091 . 2331 4867 1406 1562 1477 . 322 9401 Parts Sabotaged 4 | . . . . . . . . . . . . . . . . . . . . . . . 4 Parts Stolen . | . . . . . . . . . . . . . . . . . . . . . . . . Parts Stripped . | . . . . . . . . . . . . . . . . . . . . . . . . Power Chain Reactions . | . . . . . . . . . . . . . . . . . . . . . . . . Alert | -11 -10 -10 -9 -9 -8 -8 -8 -8 -6 -6 -6 -6 -5 -5 -5 -5 -5 -5 -5 -5 -4 -4 -4 ------- Run | Yrd Mat Min Mat Min Mat Sto Rec Scr Fac Low Low Dat Pro Fac Was Fac Ext Cet Arc Hub Fac Was Fac Maximum Alert Level 4 | . . . 1 . 2 1 . . 2 . . . . . . . 4 3 2 2 1 . 3 Low Security (%) 68 | 100 100 100 43 100 90 82 100 . 76 . . . . 100 100 100 28 . . 56 16 100 21 Level 1 17 | . . . 56 . 8 17 . . 12 . . . . . . . 29 . 57 33 83 . 15 Level 2 9 | . . . . . 1 . . . 10 . . . . . . . 17 22 42 10 . . 51 Level 3 3 | . . . . . . . . . . . . . . . . . 16 77 . . . . 11 Level 4 . | . . . . . . . . . . . . . . . . . 8 . . . . . . Level 5 . | . . . . . . . . . . . . . . . . . . . . . . . . High Security . | . . . . . . . . . . . . . . . . . . . . . . . . Max Security . | . . . . . . . . . . . . . . . . . . . . . . . . Peak Influence 1357 | . 145 73 375 135 463 320 129 . 514 . . . . 192 63 193 1357 785 475 566 273 58 987 Initial 757 | . . 43 23 135 . 4 3 . . . . . . . 63 2 90 757 298 128 273 58 . Average 174 | . 58 11 232 14 76 84 43 . 98 . . . . 60 41 15 469 732 401 255 233 26 401 Influence Increases 11776 | . 623 155 1205 40 952 877 349 . 905 215 60 . 60 357 10 351 2381 268 279 758 64 10 1857 Destroy 0b10 Robot/C 5580 | . 300 140 660 40 540 420 100 . 560 180 60 . 60 160 . 140 1020 160 80 200 20 . 740 Destroy 0b10 Robot/NC 620 | . 45 . 95 . 75 50 10 . 70 . . . . 25 . 35 55 10 30 45 . . 75 Destroy Leader 1072 | . 78 . 212 . 148 114 . . 108 20 . . . 46 . 48 96 . . 58 10 . 134 Allied During Kill 1356 | . . 15 30 . . 193 19 . 7 . . . . 14 . . 694 90 97 190 7 . . Successful Hack 403 | . 29 . 24 . 34 41 27 . 12 . . . . 64 . 24 26 . . 23 25 . 74 Select Force Hacks 270 | . 30 . 60 . . . 180 . . . . . . . . . . . . . . . . Disable Machine 615 | . 30 . 45 . 15 15 . . 45 . . . . 15 . 30 60 . 60 60 . . 240 Destroy Structure 945 | . 6 . 4 . 95 29 13 . 88 . . . . 18 10 74 100 8 12 182 2 10 294 Partial Spotted 15 | . . . . . . 15 . . . . . . . . . . . . . . . . . Lose Combat Pursuer 900 | . 105 . 75 . 45 . . . 15 15 . . . 15 . . 330 . . . . . 300 Influence Decreases 8287 | . 510 137 880 175 940 872 352 . 394 272 222 . 60 175 70 168 1118 280 210 328 170 68 886 Time Decay 5811 | . 470 134 680 175 480 427 347 . 339 262 222 . 60 145 50 148 518 190 190 278 140 40 516 Lost Part 638 | . 40 3 . . 10 . . . 35 10 . . . 10 20 20 40 50 . 10 10 10 370 Lost Ally 904 | . . . 50 . . 111 5 . 20 . . . . 20 . . 560 40 20 40 20 18 . Purge Threat 934 | . . . 150 . 450 334 . . . . . . . . . . . . . . . . . Squads Dispatched 56 | . 4 . 3 1 4 2 . . 9 . . . . 6 . 6 4 . . 3 1 . 13 Investigation 12 | . 3 . 2 1 . 1 . . . . . . . 1 . 1 . . . 2 . . 1 Extermination 9 | . . . . . . . . . 3 . . . . . . 2 . . . . . . 4 Reinforcement 23 | . 1 . 1 . 4 1 . . 3 . . . . 2 . 2 2 . . 1 1 . 5 Assault 6 | . . . . . . . . . . . . . . 1 . . 2 . . . . . 3 Garrison 6 | . . . . . . . . . 3 . . . . 2 . 1 . . . . . . . Intercept . | . . . . . . . . . . . . . . . . . . . . . . . . Searches Triggered . | . . . . . . . . . . . . . . . . . . . . . . . . Data Miner Redirects 6 | . . . . . . . . . . . . . . 1 . 1 2 . . . . . 2 Construction Impeded 7 | . . . . . 1 . . . 1 . . . . . . 2 1 . . . . . 2 Haulers Reinforced 4 | . . . . . . . . . 2 . . . . 1 . . . . . . . . 1 Active Scanning Responses . | . . . . . . . . . . . . . . . . . . . . . . . . Cargo Convoy Interrupts 1 | . . . . . . . . . 1 . . . . . . . . . . . . . . Stealth | -11 -10 -10 -9 -9 -8 -8 -8 -8 -6 -6 -6 -6 -5 -5 -5 -5 -5 -5 -5 -5 -4 -4 -4 --------- Run | Yrd Mat Min Mat Min Mat Sto Rec Scr Fac Low Low Dat Pro Fac Was Fac Ext Cet Arc Hub Fac Was Fac Distress Signals 21 | . 1 . 2 . 2 3 . . . . . . . 1 . 4 2 2 . . . . 4 Communications Jammed 1 | . . . . . . . . . . . . . . . . . . . . . . . 1 Distress Signals 1 | . . . . . . . . . . . . . . . . . . . . . . . 1 Times Spotted 415 | . 29 7 51 2 38 18 3 . 33 12 3 . 3 18 6 11 77 9 7 9 1 5 73 Peak Tracking Total 19 | . 4 1 4 2 7 3 2 . 9 7 3 . 3 5 6 5 19 5 1 3 1 5 11 Tactical Retreats 33 | . 6 . 4 . 1 . . . 1 1 . . . 1 . . 9 . . . . 1 9 Traps | -11 -10 -10 -9 -9 -8 -8 -8 -8 -6 -6 -6 -6 -5 -5 -5 -5 -5 -5 -5 -5 -4 -4 -4 ------- Run | Yrd Mat Min Mat Min Mat Sto Rec Scr Fac Low Low Dat Pro Fac Was Fac Ext Cet Arc Hub Fac Was Fac Traps Triggered 18 | . 2 . . . . . . . 2 . . . . 2 . 6 1 . . 1 2 . 2 Indirectly . | . . . . . . . . . . . . . . . . . . . . . . . . Trap Hack Attempts . | . . . . . . . . . . . . . . . . . . . . . . . . Triggered . | . . . . . . . . . . . . . . . . . . . . . . . . Disarmed . | . . . . . . . . . . . . . . . . . . . . . . . . Reprogrammed . | . . . . . . . . . . . . . . . . . . . . . . . . Reused . | . . . . . . . . . . . . . . . . . . . . . . . . Traps Extracted . | . . . . . . . . . . . . . . . . . . . . . . . . Installed . | . . . . . . . . . . . . . . . . . . . . . . . . Triggered . | . . . . . . . . . . . . . . . . . . . . . . . . Machines | -11 -10 -10 -9 -9 -8 -8 -8 -8 -6 -6 -6 -6 -5 -5 -5 -5 -5 -5 -5 -5 -4 -4 -4 ---------- Run | Yrd Mat Min Mat Min Mat Sto Rec Scr Fac Low Low Dat Pro Fac Was Fac Ext Cet Arc Hub Fac Was Fac Machines Disabled 43 | . 2 . 3 . 1 1 . . 3 . . . . 1 . 2 6 . 4 4 . . 16 Max in Single Turn 9 | . 2 . 1 . 1 1 . . 1 . . . . . . 1 1 . 1 1 . . 9 Garrison Access 3 | . . . . . . 1 . . . . . . . 1 . . . . . . . . 1 Network Hub 1 | . . . . . . . . . . . . . . . . . . . . 1 . . . Machines Repaired . | . . . . . . . . . . . . . . . . . . . . . . . . Machines Dismantled . | . . . . . . . . . . . . . . . . . . . . . . . . Machines Sabotaged . | . . . . . . . . . . . . . . . . . . . . . . . . Overloaded Fab Kills . | . . . . . . . . . . . . . . . . . . . . . . . . Hacking | -11 -10 -10 -9 -9 -8 -8 -8 -8 -6 -6 -6 -6 -5 -5 -5 -5 -5 -5 -5 -5 -4 -4 -4 --------- Run | Yrd Mat Min Mat Min Mat Sto Rec Scr Fac Low Low Dat Pro Fac Was Fac Ext Cet Arc Hub Fac Was Fac Machines Accessed 98 | . 7 1 12 1 14 12 12 3 6 . . 4 . 6 . 3 4 . . 2 3 . 8 Terminals 60 | . 6 . 9 . 10 9 6 . 3 . . . . 4 . 1 4 . . 2 1 . 5 Fabricators 4 | . . . . . . . . . 1 . . . . . . 1 . . . . . . 2 Repair Stations 6 | . . . 1 . 2 2 . . 1 . . . . . . . . . . . . . . Recycling Units 11 | . 1 . 2 . . . 6 . . . . . . 1 . . . . . . 1 . . Scanalyzers 5 | . . . . . 2 . . . 1 . . . . . . 1 . . . . 1 . . Garrison Access 3 | . . . . . . 1 . . . . . . . 1 . . . . . . . . 1 Total Hacks 325 | . 34 1 41 1 58 39 29 7 13 . . 26 . 13 . 10 8 . . 5 13 . 27 Successful 215 | . 22 1 26 1 45 28 18 7 8 . . 26 . 8 . 3 2 . . 3 8 . 9 Failed 110 | . 12 . 15 . 13 11 11 . 5 . . . . 5 . 7 6 . . 2 5 . 18 Catastrophic 12 | . 1 . . . 1 1 . . 2 . . . . 2 . 1 2 . . . . . 2 Database Lockouts . | . . . . . . . . . . . . . . . . . . . . . . . . Manual 191 | . 23 . 31 . 40 30 22 . 7 . . . . 8 . 7 6 1 . 3 3 . 10 Terminals 218 | . 33 . 33 . 42 33 23 . 6 . . . . 10 . 4 8 . . 5 4 . 17 Fabricators 13 | . . . . . . . . . 2 . . . . . . 3 . . . . . . 8 Repair Stations 26 | . . . 6 . 12 5 . . 3 . . . . . . . . . . . . . . Recycling Units 13 | . 1 . 2 . . . 6 . . . . . . 1 . . . . . . 3 . . Scanalyzers 15 | . . . . . 4 . . . 2 . . . . . . 3 . . . . 6 . . Garrison Access 5 | . . . . . . 1 . . . . . . . 2 . . . . . . . . 2 Terminal Hacks 96 | . 11 1 7 1 15 12 5 7 2 . . 26 . 2 . 2 1 . . 2 . . 2 Record 17 | . . . . . . . . 6 . . . 11 . . . . . . . . . . . Part Schematic 14 | . 2 . 1 . 2 . . . . . . 8 . 1 . . . . . . . . . Robot Schematic 4 | . . . . . . . . . . . . 4 . . . . . . . . . . . Robot Analysis 8 | . 2 . 1 . 3 2 . . . . . . . . . . . . . . . . . Prototype ID Bank 11 | . 3 . 1 . 1 . 3 . . . . 3 . . . . . . . . . . . Open Door 4 | . . 1 . 1 . 2 . . . . . . . . . . . . . . . . . Level Access Points 1 | . . . . . . . . . . . . . . . . . . . . 1 . . . Branch Access Points 3 | . . . . . . . . . . . . . . 1 . 1 . . . . . . 1 Terminal Index 5 | . 1 . 1 . 1 1 . . . . . . . . . 1 . . . . . . . Repair Station Index 2 | . . . . . . 1 . . 1 . . . . . . . . . . . . . . Alert Level 3 | . . . . . 1 1 1 . . . . . . . . . . . . . . . . Unreport Threat 7 | . . . 1 . 3 3 . . . . . . . . . . . . . . . . . Locate Traps 1 | . . . . . . . . . . . . . . . . . . . . . . . 1 Recall Investigation 1 | . 1 . . . . . . . . . . . . . . . . . . . . . . Recall Reinforcements 1 | . . . . . 1 . . . . . . . . . . . . . . . . . . Hauler Manifests 4 | . . . 1 . 1 . . . 1 . . . . . . . 1 . . . . . . Zone Layout 9 | . 2 . 1 . 2 2 1 . . . . . . . . . . . . 1 . . . Derelict Proto ID Bank 1 | . . . . . . . . 1 . . . . . . . . . . . . . . . Fabricator Hacks 5 | . . . . . . . . . 1 . . . . . . . . . . . . . 4 Network Status 2 | . . . . . . . . . 1 . . . . . . . . . . . . . 1 Load Schematic 1 | . . . . . . . . . . . . . . . . . . . . . . . 1 Build 2 | . . . . . . . . . . . . . . . . . . . . . . . 2 Repair Station Hacks 25 | . . . 6 . 12 5 . . 2 . . . . . . . . . . . . . . Scan Component 13 | . . . 3 . 6 3 . . 1 . . . . . . . . . . . . . . Repair 12 | . . . 3 . 6 2 . . 1 . . . . . . . . . . . . . . Recycling Unit Hacks 1 | . . . . . . . . . . . . . . . . . . . . . 1 . . Retrieve Components 1 | . . . . . . . . . . . . . . . . . . . . . 1 . . Scanalyzer 11 | . . . . . 4 . . . 1 . . . . . . 1 . . . . 5 . . Insert Component 6 | . . . . . 2 . . . 1 . . . . . . 1 . . . . 2 . . Analyze 5 | . . . . . 2 . . . . . . . . . . . . . . . 3 . . Garrison Access Hacks 2 | . . . . . . 1 . . . . . . . . . . . . . . . . 1 Seal Access 2 | . . . . . . 1 . . . . . . . . . . . . . . . . 1 Unauthorized Hacks 75 | . 11 . 13 . 14 10 13 . 2 . . . . 6 . . 1 . . 1 2 . 2 Terminals 62 | . 10 . 11 . 14 10 7 . 1 . . . . 5 . . 1 . . 1 1 . 1 Assimilate 2 | . . . 1 . 1 . . . . . . . . . . . . . . . . . . Botnet 31 | . 4 . 5 . 7 5 2 . 1 . . . . 3 . . 1 . . 1 1 . 1 Operators 3 | . 1 . . . 1 1 . . . . . . . . . . . . . . . . . Skim 26 | . 5 . 5 . 5 4 5 . . . . . . 2 . . . . . . . . . Fabricators 2 | . . . . . . . . . 1 . . . . . . . . . . . . . 1 Haulers 2 | . . . . . . . . . 1 . . . . . . . . . . . . . 1 Repair Stations . | . . . . . . . . . . . . . . . . . . . . . . . . Recycling Units 11 | . 1 . 2 . . . 6 . . . . . . 1 . . . . . . 1 . . Recyclers 2 | . . . . . . . . . . . . . . 1 . . . . . . 1 . . Tunnel 9 | . 1 . 2 . . . 6 . . . . . . . . . . . . . . . . Scanalyzers . | . . . . . . . . . . . . . . . . . . . . . . . . Garrison Access . | . . . . . . . . . . . . . . . . . . . . . . . . Data Cores Recovered 3 | . . . 2 . . . . . . . . . . 1 . . . . . . . . . Used 1 | . . . 1 . . . . . . . . . . . . . . . . . . . . Hacking Detections 69 | . 6 . 9 . 11 10 6 . 4 . . . . 6 . 3 4 . . 2 2 . 6 Full Trace Events 4 | . . . . . . . 1 . . . . . . 1 . 1 . . . . . . 1 Feedback Events 1 | . . . . . . . 1 . . . . . . . . . . . . . . . . Corruption 1 | . . . . . . . 1 . . . . . . . . . . . . . . . . Feedback Blocked . | . . . . . . . . . . . . . . . . . . . . . . . . Robot Schematics Acquired 4 | . . . . . . . . . . . . 4 . . . . . . . . . . . Robots Built . | . . . . . . . . . . . . . . . . . . . . . . . . Authchips . | . . . . . . . . . . . . . . . . . . . . . . . . Time . | . . . . . . . . . . . . . . . . . . . . . . . . Total Robot Build Rating . | . . . . . . . . . . . . . . . . . . . . . . . . Part Schematics Acquired 17 | . 2 . 1 . 4 . . . . . . 8 . 1 . . . . . . 1 . . Parts Built 4 | . . . . . . . . . . . . . . . . . . . . . . . 4 Authchips . | . . . . . . . . . . . . . . . . . . . . . . . . Time 105 | . . . . . . . . . . . . . . . . . . . . . . . 105 Total Part Build Rating 24 | . . . . . . . . . . . . . . . . . . . . . . . 24 Parts Repaired 12 | . . . 3 . 6 2 . . 1 . . . . . . . . . . . . . . Time 517 | . . . 114 . 240 63 . . 100 . . . . . . . . . . . . . . Parts Recycled . | . . . . . . . . . . . . . . . . . . . . . . . . Recycled Matter . | . . . . . . . . . . . . . . . . . . . . . . . . Retrieved Matter . | . . . . . . . . . . . . . . . . . . . . . . . . Retrieved Components 1 | . . . . . . . . . . . . . . . . . . . . . 1 . . Parts Scanalyzed 5 | . . . . . 2 . . . 1 . . . . . . . . . . . 2 . . Part Schematics Acquired 3 | . . . . . 2 . . . . . . . . . . . . . . . 1 . . Parts Damaged . | . . . . . . . . . . . . . . . . . . . . . . . . Bothacking | -11 -10 -10 -9 -9 -8 -8 -8 -8 -6 -6 -6 -6 -5 -5 -5 -5 -5 -5 -5 -5 -4 -4 -4 ------------ Run | Yrd Mat Min Mat Min Mat Sto Rec Scr Fac Low Low Dat Pro Fac Was Fac Ext Cet Arc Hub Fac Was Fac Used RIF Installer . | . . . . . . . . . . . . . . . . . . . . . . . . Robots Hacked . | . . . . . . . . . . . . . . . . . . . . . . . . Non-combat . | . . . . . . . . . . . . . . . . . . . . . . . . Combat . | . . . . . . . . . . . . . . . . . . . . . . . . Robot Hacks Applied . | . . . . . . . . . . . . . . . . . . . . . . . . Relay Couplers Released . | . . . . . . . . . . . . . . . . . . . . . . . . Fabnet Peak Effective % . | . . . . . . . . . . . . . . . . . . . . . . . . Robots Rewired 28 | . . . . . . . 7 . . . . . . 1 . . 20 . . . . . . Allies Hacked . | . . . . . . . . . . . . . . . . . . . . . . . . Hacks Repelled . | . . . . . . . . . . . . . . . . . . . . . . . . Allies | -11 -10 -10 -9 -9 -8 -8 -8 -8 -6 -6 -6 -6 -5 -5 -5 -5 -5 -5 -5 -5 -4 -4 -4 -------- Run | Yrd Mat Min Mat Min Mat Sto Rec Scr Fac Low Low Dat Pro Fac Was Fac Ext Cet Arc Hub Fac Was Fac Total Allies 58 | . . 3 1 . . 10 7 . . . . . . 1 . . 31 5 . . . . . Largest Group 19 | . . 3 3 . . 10 6 6 5 . . . . 1 . . 19 6 5 4 2 1 . Highest-Rated Group 720 | . . 40 40 . . 173 83 83 73 . . . . 49 . . 720 500 404 308 192 96 . Highest-Rated Ally 159 | . . 16 16 . . 29 16 16 16 . . . . 49 . . 159 152 96 96 96 96 . Total Orders 4 | . . . . . . . 2 . . . . . . . . . . . . 2 . . . STAY 1 | . . . . . . . . . . . . . . . . . . . . 1 . . . FOLLOW 2 | . . . . . . . 1 . . . . . . . . . . . . 1 . . . TUNNEL 1 | . . . . . . . 1 . . . . . . . . . . . . . . . . Ally Attacks 481 | . . 1 25 . . 112 16 . 5 . . . . 7 . . 223 28 21 26 4 13 . Total Damage 10340 | . . . 240 . . 1298 163 . 44 . . . . 269 . . 4987 1007 905 750 137 540 . Kills 82 | . . . 6 . . 17 4 . . . . . . 2 . . 35 6 3 8 1 . . Allies Corrupted 1 | . . . . . . . . . . . . . . . . . 1 . . . . . . Allies Melted . | . . . . . . . . . . . . . . . . . . . . . . . . Intel | -11 -10 -10 -9 -9 -8 -8 -8 -8 -6 -6 -6 -6 -5 -5 -5 -5 -5 -5 -5 -5 -4 -4 -4 ------- Run | Yrd Mat Min Mat Min Mat Sto Rec Scr Fac Low Low Dat Pro Fac Was Fac Ext Cet Arc Hub Fac Was Fac Active Infowar (turns) 4657 | . . . . . . . . . 231 . . . . . . . 978 308 393 601 283 151 1712 Sensors 4544 | . . . . . . . . . 231 . . . . . . . 978 308 393 601 283 151 1599 Jamming 630 | . . . . . . . . . . . . . . . . . . . . . . . 630 Robot Analysis Total 8 | . 2 . 1 . 3 2 . . . . . . . . . . . . . . . . . Derelict Logs Recovered 5 | . . 2 . 1 . . . . . . . . 2 . . . . . . . . . . Drone Launches . | . . . . . . . . . . . . . . . . . . . . . . . . Drone Recoveries . | . . . . . . . . . . . . . . . . . . . . . . . . Exploration | -11 -10 -10 -9 -9 -8 -8 -8 -8 -6 -6 -6 -6 -5 -5 -5 -5 -5 -5 -5 -5 -4 -4 -4 ------------- Run | Yrd Mat Min Mat Min Mat Sto Rec Scr Fac Low Low Dat Pro Fac Was Fac Ext Cet Arc Hub Fac Was Fac Turns Passed 24902 | 73 1406 993 2838 1607 3096 1066 1190 2526 1728 571 478 111 502 552 103 555 1439 384 393 612 286 151 2242 Spaces Moved 11731 | 47 661 526 1035 656 1228 390 586 1316 702 328 353 88 384 337 67 290 550 151 65 407 202 102 1260 Core 11 | 11 . . . . . . . . . . . . . . . . . . . . . . . Treads 2914 | 36 661 526 1035 656 . . . . . . . . . . . . . . . . . . . Legs 8806 | . . . . . 1228 390 586 1316 702 328 353 88 384 337 67 290 550 151 65 407 202 102 1260 Wheels . | . . . . . . . . . . . . . . . . . . . . . . . . Hover . | . . . . . . . . . . . . . . . . . . . . . . . . Flight . | . . . . . . . . . . . . . . . . . . . . . . . . Fastest Speed 50 | 50 160 160 160 240 193 190 190 190 116 120 120 120 120 120 120 120 120 120 120 120 120 120 120 Average Speed 165 | 134 160 160 220 240 194 190 190 190 181 120 120 120 120 120 120 124 120 120 120 120 120 120 120 Slowest Speed 265 | 160 160 160 240 240 265 193 190 190 190 120 120 120 120 120 120 260 190 120 120 120 120 120 260 Overloaded Moves . | . . . . . . . . . . . . . . . . . . . . . . . . Propulsion Burnouts . | . . . . . . . . . . . . . . . . . . . . . . . . Robots Hopped . | . . . . . . . . . . . . . . . . . . . . . . . . Cave-ins Triggered 3 | . . . . . . . . . . . . . . . 2 . . . . . . 1 . Exploration Rate (%) 58 | 4 92 100 91 97 82 64 97 88 17 42 49 70 60 10 85 9 76 56 70 32 6 81 30 Regions Visited 23 Branch Regions 13 Pre-discovered Areas 18 | . 4 1 3 1 2 . 6 . . . . 1 . . . . . . . . . . . Known Exits Taken 16 | . . 1 1 1 1 1 . 1 1 1 1 1 1 . . 1 1 1 1 1 . . . Unknown Exits Taken 3 | 1 1 . . . . . 1 . . . . . . . . . . . . . . . . Scrap Searched 12 | . . 1 . 1 . . . 5 . 1 3 . 1 . . . . . . . . . . Spaces Dug 120 | . . . . . 20 . . . 1 31 11 . 5 1 12 3 2 . . 3 . 5 26 Terrain Destroyed 783 | . 5 . 2 . 105 29 3 . 101 47 17 . 6 10 14 37 35 . 1 179 . 12 180 Melee . | . . . . . . . . . . . . . . . . . . . . . . . . Projectile 307 | . . . 2 . 45 14 3 . 11 47 17 . 6 10 14 11 15 . 1 9 . 12 90 AOE 476 | . 5 . . . 60 15 . . 90 . . . . . . 26 20 . . 170 . . 90 Terrain Rammed . | . . . . . . . . . . . . . . . . . . . . . . . . Walls Destroyed . | . . . . . . . . . . . . . . . . . . . . . . . . Machines Disabled . | . . . . . . . . . . . . . . . . . . . . . . . . Actions | -11 -10 -10 -9 -9 -8 -8 -8 -8 -6 -6 -6 -6 -5 -5 -5 -5 -5 -5 -5 -5 -4 -4 -4 --------- Run | Yrd Mat Min Mat Min Mat Sto Rec Scr Fac Low Low Dat Pro Fac Was Fac Ext Cet Arc Hub Fac Was Fac Total 15878 | 54 905 650 1398 680 1793 658 654 1345 1043 442 380 93 407 435 79 408 1217 328 343 498 246 114 1708 Wait 2625 | . 144 96 187 3 421 208 29 24 192 80 16 . 14 47 5 51 484 143 247 46 23 2 163 Move 11707 | 46 660 525 1034 655 1227 389 585 1315 701 327 352 87 383 337 64 289 549 150 64 406 202 100 1260 Hop . | . . . . . . . . . . . . . . . . . . . . . . . . Pick Up 179 | 2 14 5 24 5 20 8 . 3 23 2 . . 1 4 . 6 6 7 3 7 6 1 32 Fast Attach 111 | 6 2 . 4 . 11 6 . . 12 . . 3 . 1 . 20 10 3 4 4 . . 25 Attach 74 | . 3 1 2 1 5 . . . 12 2 . . 1 2 2 3 4 5 . 1 2 2 26 Detach 2 | . . . . . . 1 . . . . . . . . . . . . . . . . 1 Swap 115 | . 10 1 17 2 10 2 . . 15 . . . . 2 1 4 6 7 4 1 4 . 29 Drop 182 | . 9 5 25 7 24 12 . 3 26 1 . 3 . 2 . 3 13 3 5 10 4 . 27 Fire 688 | . 60 14 101 6 71 25 3 . 58 30 12 . 8 23 5 31 50 10 16 15 . 8 142 Melee . | . . . . . . . . . . . . . . . . . . . . . . . . Ram . | . . . . . . . . . . . . . . . . . . . . . . . . Kick 34 | . . . . . 4 7 2 . 4 . . . . 4 . 1 1 . . 8 . . 3 Crush 11 | . 3 3 4 1 . . . . . . . . . . . . . . . . . . . Escape Stasis 13 | . . . . . . . . . . . . . . . 2 . 5 . . . 5 1 . Rewire 137 | . . . . . . . 35 . . . . . . 13 . . 89 . . . . . . Trap . | . . . . . . . . . . . . . . . . . . . . . . . . Miscellaneous . | . . . . . . . . . . . . . . . . . . . . . . . . Route ------- -11/Scrapyard -10/Materials (discovered 6 exits: *Mat x3 / *Min x2 / *Sub) -10/Mines (discovered 3 exits: *Mat x2 / *Sub) -9/Materials (discovered 4 exits: *Mat x3 / *Min) -9/Mines (discovered 2 exits: *Mat x2) -8/Materials (discovered 4 exits: *Fac x3 / *Sto) -8/Storage (discovered 2 exits: Fac / *Rec) -8/Recycling (discovered 2 exits: *Fac / *Scr) -8/Scraptown (discovered 2 exits: *Fac x2) -6/Factory (discovered 5 exits: Fac x3 / *Low x2) -6/Lower Caves -6/Lower Caves -6/Data Miner -5/Proximity Caves -5/Factory (discovered 5 exits: *Fac / Upp x2 / Ext x2) -5/Waste -5/Factory (discovered 4 exits: Upp x2 / *Ext x2) -5/Extension (discovered 2 exits: *Fac / *Cet) -5/Cetus (discovered 2 exits: *Fac / *Arc) -5/Archives -5/Hub_04(d) (discovered 4 exits: *Fac x4) -4/Factory -4/Waste -4/Factory (discovered 4 exits: [*Res] / Upp x2 / Arm) History --------- Turn | Location | Event 6 | -11/Scrapyard | Discovered new exit (range 15) 74 | -11/Scrapyard | Entered Materials 311 | -10/Materials | Build established: Mutant 372 | -10/Materials | Lost 3 parts (1n2w) 486 | -10/Materials | Discovered new exit (range 6) 604 | -10/Materials | Discovered new exit (range 5) 626 | -10/Materials | Core integrity fell below 50% 727 | -10/Materials | Discovered new exit (range 16) 823 | -10/Materials | Discovered new exit (range 13) 826 | -10/Materials | Discovered new exit (range 11) 827 | -10/Materials | Identified exit to Materials 890 | -10/Materials | Learned location of 2 exits from Mines 941 | -10/Materials | Learned location of 2 exits from Materials 1480 | -10/Materials | Entered Mines 1481 | -10/Mines | Identified exit to Subcaves 1496 | -10/Mines | Met a Derelict who couldn't figure out how to use a Trap Extractor 1575 | -10/Mines | Discovered exit to Materials (range 10) 1577 | -10/Mines | Excavation squad dispatched 1577 | -10/Mines | A large section of the Mines collapsed 1827 | -10/Mines | Excavation squad dispatched 2039 | -10/Mines | Learned location of Storage (-8) 2140 | -10/Mines | Assisted by bots powering up and referring to "LRC-V3" 2473 | -10/Mines | Entered Materials 2473 | -9/Materials | Accompanied by 3 allies 2473 | -9/Materials | Evolved 2 slots: Utility x1, Weapon x1 2474 | -9/Materials | Identified exit to Mines 2475 | -9/Materials | Identified exit to Materials 2781 | -9/Materials | Build established: Tank 3675 | -9/Materials | Discovered exit to Materials (range 16) 3744 | -9/Materials | Build established: Scavenger-Tank 4285 | -9/Materials | Learned Storage emergency access door positions 4351 | -9/Materials | Learned 2 Storage zone layouts 4369 | -9/Materials | Learned location of 2 exits from Materials 4379 | -9/Materials | Learned location of 2 exits from Materials 4380 | -9/Materials | Learned 2 Storage zone layouts 4490 | -9/Materials | Build established: Tank 4701 | -9/Materials | Repaired Carbon-fiber Leg 4740 | -9/Materials | Repaired Imp. Light Armor Plating 4779 | -9/Materials | Repaired Ion Cannon 5311 | -9/Materials | Entered Mines 5471 | -9/Mines | Discovered exit to Materials (range 6) 5551 | -9/Mines | Met a Derelict shopkeep closing up shop 5739 | -9/Mines | Found a hidden stash of uninstalled traps 5770 | -9/Mines | Learned 2 Materials zone layouts 5861 | -9/Mines | Build established: Scavenger-Tank 6108 | -9/Mines | Received a Rocket Launcher from a helpful Derelict 6296 | -9/Mines | Discovered exit to Materials (range 15) 6918 | -9/Mines | Entered Materials 6918 | -8/Materials | Evolved 2 slots: Propulsion x1, Utility x1 6919 | -8/Materials | Identified exit to Storage 6919 | -8/Materials | Identified exit to Factory 7328 | -8/Materials | Build established: Tank 7892 | -8/Materials | Build established: Scavenger-Tank 8297 | -8/Materials | Repaired Hrd. Medium Armor Plating 8342 | -8/Materials | Repaired Imp. Deuterium Engine 8381 | -8/Materials | Repaired Hrd. Medium Armor Plating 8602 | -8/Materials | Learned location of 3 exits from Factory 8675 | -8/Materials | Learned location of Extension (-5) 8738 | -8/Materials | Learned Storage emergency access door positions 8867 | -8/Materials | Learned location of Zion (-7) 8889 | -8/Materials | Learned location of 1 exit from Storage 8920 | -8/Materials | Learned location of 1 exit from Lower Caves 9010 | -8/Materials | Learned Factory emergency access door positions 9070 | -8/Materials | Learned Storage trap positions 9740 | -8/Materials | Repaired Imp. Carbon-fiber Leg 9780 | -8/Materials | Repaired Hrd. Medium Armor Plating 9819 | -8/Materials | Repaired Carbon-fiber Leg 10014 | -8/Materials | Entered Storage 10016 | -8/Storage | Identified exit to Recycling 10018 | -8/Storage | Loaded intel: 22 trap records 10052 | -8/Storage | Assisted by bots powering up and referring to "LRC-V3" 10344 | -8/Storage | Build established: Commander-Tank 10397 | -8/Storage | Used back door to open Recycling access 10508 | -8/Storage | Repaired Hvy. Ion Cannon? 10579 | -8/Storage | Lost 7 allies 10808 | -8/Storage | Build established: Scavenger-Tank 10906 | -8/Storage | Repaired Hrd. Medium Armor Plating 11080 | -8/Storage | Entered Recycling 11080 | -8/Recycling | Accompanied by 1 ally 11081 | -8/Recycling | Identified exit to Factory 11448 | -8/Recycling | Build established: Commander-Tank 12219 | -8/Recycling | Scanned before Scraplab entrance 12246 | -8/Recycling | Entered Scraplab 12261 | -8/Recycling | Discovered new exit (range 2) 12270 | -8/Recycling | Entered Scraptown 12270 | -8/Scraptown | Accompanied by 6 allies 12271 | -8/Scraptown | System corruption cleaned by C-Scrubber 12839 | -8/Scraptown | Visited Symbiants 12885 | -8/Scraptown | Visited Cave Peace 12930 | -8/Scraptown | Visited Bundlers 13020 | -8/Scraptown | Visited Red Mages 13118 | -8/Scraptown | Visited Spacefarers 13137 | -8/Scraptown | Visited Comm Corps 13402 | -8/Scraptown | Visited UFD Registry 13402 | -8/Scraptown | Registered with UFD as "Technoshaft" 13718 | -8/Scraptown | Visited Scrap Suit Storage 13744 | -8/Scraptown | Visited Chapter 10 13790 | -8/Scraptown | Visited Research Penetration Think Tank 13833 | -8/Scraptown | Visited Science Guys 13913 | -8/Scraptown | Visited Infowarlord's Domain 13938 | -8/Scraptown | Visited Botcube Research 14087 | -8/Scraptown | Found Exp. Signal Interpreter 14155 | -8/Scraptown | Visited Abandonware Association 14176 | -8/Scraptown | Learned abandonware demo "HACKBUD.EXE" 14176 | -8/Scraptown | Learned abandonware demo "REBOOT5.EXE" 14229 | -8/Scraptown | Visited Derelict Rescue Squad 14279 | -8/Scraptown | Visited Scrapoid Research Area 14796 | -8/Scraptown | Entered Factory 14796 | -6/Factory | Accompanied by 5 allies 14796 | -6/Factory | Evolved 4 slots: Propulsion x1, Utility x3 14797 | -6/Factory | Identified exit to Factory 14798 | -6/Factory | Identified exit to Lower Caves 15092 | -6/Factory | Garrison activated, responded to threat 15112 | -6/Factory | Build established: Scavenger-Gunner 15321 | -6/Factory | Repaired Broken Multireflex Exoskeleton? 15799 | -6/Factory | Discovered exit to Lower Caves (range 12) 16336 | -6/Factory | Cargo convoy interrupted 16411 | -6/Factory | Destroyed 12 combat bots 16524 | -6/Factory | Entered Lower Caves 16525 | -6/Lower Caves | Identified exit to Lower Caves 16679 | -6/Lower Caves | Build established: Gunner 16950 | -6/Lower Caves | Attracted the attention of an 0b10 checkpoint 16997 | -6/Lower Caves | Found DCF Scrap (11 items) 17058 | -6/Lower Caves | Spotted B-75 Beast 17095 | -6/Lower Caves | Entered another Lower Caves area 17311 | -6/Lower Caves | Attracted the attention of an 0b10 checkpoint 17404 | -6/Lower Caves | Discovered new exit (range 11) 17415 | -6/Lower Caves | Identified exit to Data Miner 17509 | -6/Lower Caves | Encountered a Warlord checkpoint 17573 | -6/Lower Caves | Entered Data Miner 17573 | -6/Data Miner | Discovered new exit (range 6) 17579 | -6/Data Miner | Identified exit to Proximity Caves 17598 | -6/Data Miner | Met Data Miner 17633 | -6/Data Miner | Learned location of Section 7 (-2) 17633 | -6/Data Miner | Acquired the access code to Warlord's prototype stash 17643 | -6/Data Miner | Received God Mode back door access code from Data Miner 17684 | -6/Data Miner | Entered Proximity Caves 17827 | -5/Proximity Caves | Attracted the attention of an 0b10 checkpoint 17937 | -5/Proximity Caves | Learned Factory interactive machine intel 18124 | -5/Proximity Caves | Discovered exit to Factory (range 15) 18186 | -5/Proximity Caves | Entered Factory 18186 | -5/Factory | Evolved 2 slots: Power x1, Utility x1 18187 | -5/Factory | Identified exit to Upper Caves 18188 | -5/Factory | Loaded intel: 53 interactive machine locations 18313 | -5/Factory | Identified exit to Extension 18388 | -5/Factory | Discovered new exit (range 3) 18390 | -5/Factory | Identified exit to Factory 18483 | -5/Factory | Build established: Tank 18599 | -5/Factory | Allied Derelicts emerged from ambush trap array 18667 | -5/Factory | Incoming assault squad redirected 18669 | -5/Factory | Lost 4 allies 18738 | -5/Factory | Sucked down chute 18738 | -5/Factory | Entered Waste 18753 | -5/Waste | EMP discharged 18772 | -5/Waste | Spotted C-40 Crusher 18781 | -5/Waste | Spotted C-40 Crusher 18790 | -5/Waste | Spotted C-40 Crusher 18792 | -5/Waste | Spotted C-40 Crusher 18792 | -5/Waste | Spotted C-40 Crusher 18810 | -5/Waste | Crushed by falling debris 18811 | -5/Waste | System corruption reached 10% 18821 | -5/Waste | Spotted C-40 Crusher 18821 | -5/Waste | Crushed by falling debris 18830 | -5/Waste | Discovered new exit (range 10) 18841 | -5/Waste | Entered Factory 19081 | -5/Factory | Incoming investigation squad redirected 19351 | -5/Factory | Garrison activated, responded to threat 19396 | -5/Factory | Entered Extension 19464 | -5/Extension | Rescued a captive Derelict 19650 | -5/Extension | Rescued a captive Derelict 19864 | -5/Extension | Rescued a captive Derelict 19874 | -5/Extension | Build established: Commander-Tank 19908 | -5/Extension | Rescued a captive Derelict 19909 | -5/Extension | Rescued a captive Derelict 19971 | -5/Extension | Rescued a captive Derelict 19971 | -5/Extension | Rescued a captive Derelict 19975 | -5/Extension | Spotted B-75 Beast 19994 | -5/Extension | Destroyed B-75 Beast 19999 | -5/Extension | Spotted B-75 Beast 20046 | -5/Extension | Allies destroyed B-75 Beast 20074 | -5/Extension | Lost 9 allies 20104 | -5/Extension | Rescued A7 20128 | -5/Extension | Rescued a captive Derelict 20171 | -5/Extension | Disrupted transfer network 20206 | -5/Extension | Rescued a captive Derelict 20207 | -5/Extension | Rescued a captive Derelict 20591 | -5/Extension | Discovered exit to Factory (range 10) 20592 | -5/Extension | Discovered new exit (range 6) 20596 | -5/Extension | First assault squad dispatched 20597 | -5/Extension | Disrupted transfer network 20613 | -5/Extension | Incoming assault squad redirected 20614 | -5/Extension | Incoming assault squad redirected 20679 | -5/Extension | Lost 5 allies 20795 | -5/Extension | Lost 5 allies 20821 | -5/Extension | Identified exit to Cetus 20835 | -5/Extension | Entered Cetus 20835 | -5/Cetus | Accompanied by 2 allies (A7) 20838 | -5/Cetus | Lost 7 allies 20840 | -5/Cetus | Acquired a Cetus Manufacturing Module code from A7 20855 | -5/Cetus | Spotted Cetus Guard 20855 | -5/Cetus | Spotted Cetus Guard 20857 | -5/Cetus | Spotted Cetus Guard 20857 | -5/Cetus | Spotted Cetus Guard 20859 | -5/Cetus | Destroyed Cetus Guard 20874 | -5/Cetus | Destroyed Cetus Guard 20878 | -5/Cetus | Destroyed Cetus Guard 20886 | -5/Cetus | Destroyed Cetus Guard 20892 | -5/Cetus | Extracted ID and sensor layout for unrecognized location from A7's data core 20905 | -5/Cetus | Lost 3 parts (1u2w) 20948 | -5/Cetus | Started Cetus Manufacturing Module 20963 | -5/Cetus | Discovered new exit (range 15) 20973 | -5/Cetus | Manufactured an Enhanced Grunt 20998 | -5/Cetus | Manufactured an Enhanced Grunt 21023 | -5/Cetus | Manufactured an Enhanced Grunt 21048 | -5/Cetus | Manufactured an Enhanced Grunt 21073 | -5/Cetus | Manufactured an Enhanced Grunt 21114 | -5/Cetus | Spotted Cetus Guard 21114 | -5/Cetus | Spotted Cetus Guard 21117 | -5/Cetus | Spotted Cetus Guard 21118 | -5/Cetus | Spotted Cetus Guard 21121 | -5/Cetus | Allies destroyed Cetus Guard 21124 | -5/Cetus | Allies destroyed Cetus Guard 21131 | -5/Cetus | Allies destroyed Cetus Guard 21135 | -5/Cetus | Allies destroyed Cetus Guard 21149 | -5/Cetus | Discovered exit to Factory (range 15) 21155 | -5/Cetus | Met Revision 17 21213 | -5/Cetus | Identified exit to Archives 21219 | -5/Cetus | Entered Archives 21219 | -5/Archives | Accompanied by 5 allies 21432 | -5/Archives | Build established: Scavenger-Skirmisher 21581 | -5/Archives | Discovered new exit (range 15) 21604 | -5/Archives | Identified exit to Hub_04(d) 21612 | -5/Archives | Entered Hub_04(d) 21612 | -5/Hub_04(d) | Accompanied by 4 allies 21613 | -5/Hub_04(d) | Discovered exit to Factory (range 11) 21772 | -5/Hub_04(d) | Found Prototype Processor 21772 | -5/Hub_04(d) | Identified Exp. Targeting Computer 21783 | -5/Hub_04(d) | Found Exp. Targeting Computer 21973 | -5/Hub_04(d) | Discovered exit to Factory (range 15) 22176 | -5/Hub_04(d) | Network Hub disabled 22224 | -5/Hub_04(d) | Entered Factory 22224 | -4/Factory | Accompanied by 2 allies 22224 | -4/Factory | Evolved 2 slots: Power x1, Propulsion x1 22510 | -4/Factory | Sucked down chute 22510 | -4/Factory | Entered Waste 22525 | -4/Waste | 1 allies followed down the chute 22525 | -4/Waste | EMP discharged 22525 | -4/Waste | System corruption reached 10% 22574 | -4/Waste | Spotted C-40 Crusher 22579 | -4/Waste | Spotted C-40 Crusher 22584 | -4/Waste | Spotted C-40 Crusher 22591 | -4/Waste | Spotted C-40 Crusher 22597 | -4/Waste | Crushed by falling debris 22603 | -4/Waste | Spotted C-40 Crusher 22625 | -4/Waste | EMP discharged 22648 | -4/Waste | Discovered new exit (range 10) 22659 | -4/Waste | Identified exit to Factory 22661 | -4/Waste | Entered Factory 23036 | -4/Factory | Lost 4 parts (2n2u) 23044 | -4/Factory | Destroyed 9 combat bots 23124 | -4/Factory | Fabricated Adv. Targeting Computer? 23226 | -4/Factory | Identified exit to Upper Caves 23226 | -4/Factory | Identified exit to Armory 23554 | -4/Factory | Lost 5 parts (2p2n1w) 23661 | -4/Factory | First assault squad dispatched 23683 | -4/Factory | Incoming assault squad redirected 24000 | -4/Factory | Discovered new exit (range 8) 24272 | -4/Factory | Fabricated Enh. Nova Cannon (x2) 24363 | -4/Factory | Incoming assault squad redirected 24458 | -4/Factory | Found Exp. Signal Interpreter 24856 | -4/Factory | Destroyed 7 combat bots 24903 | -4/Factory | Self-destructed Last Messages --------------- 24882_ R-10 Processor collects VTOL Module. 24884_ U-05 Engineer builds a Wall. 24885_ R-10 Processor collects Flexi-carbon Leg. 24886_ Lgt. Nuclear Core melted. 24886_ S-27 Virus destroyed. 24886_ K-01 Serf collects debris. 24887_ System corrupted: Matter fused (-7). 24888_ Enh. Flexi-carbon Leg destroyed. 24888_ R-10 Processor collects Lgt. Nuclear Core. 24889_ U-05 Engineer builds a Wall. 24890_ K-01 Serf collects debris. 24893_ U-05 Engineer builds a Wall. 24894_ S-27 Virus destroyed. 24894_ Plasma Rifle destroyed. 24894_ K-01 Serf collects debris. 24899_ U-05 Engineer builds a Wall. 24899_ Lgt. Antimatter Reactor destroyed. 24899_ Critical hit (Burn: +37). 24901_ Acquired Plasma Rifle. 24903_ System corrupted: Heat flow error (+159). Map ----- +----------------------------------------------------+ | ?????????????????????????????????????????????????? | | ?????????????????????????????????????????????????? | | ?????????????????????????????????????????????????? | | ?????????????????????????????????????????????????? | | ?????????????????????????????????????????????????? | | ???????????????>?????????????????????????????????? | | ?????????????????????????????????????????????????? | | ?????????????????????????????????????????????????? | | ?????????????????????????????????????????????????? | | ?????????????????????????????????????????????????? | | ??????????????? ???????????????????????????????? | | ????????????? ??????????? ?????????????????? | | ????????????# ??????????? #????????????????? | | ????????????# #?????????? #????????????????? | | ????????????# #?????????? #????????????????? | | ????????????# #?????????# #????????????????? | | ????????????# #?????????# /????????????????? | | ????????????# #?#???????# #????????????????? | | ????????????# #?# ??????# #????????????????? | | ????????????# ###"####### #????????????????? | | ????????????# ## /! # #????????????????? | | ????????????# ## ]! [# #????????????????? | | ????????????# ## ]!* =[[#= ##???????????????? | | ????????????# %## !=[=!uk= * ##???????????????? | | ????????????# %g#####+##u## %[####?????????????? | | ????????????# *=g=%g!%A@!gk #" #??????? | | ????????????#* g###########% ## #??????? | | ???????????##[! #???##=%### #?????? ???????? | | ???????????##% * #????#=#??# #????? ????????? | | ???????????##[* ##??# #???# #???? ?????????? | | ????????????#! #####?##????# #??? ??????????? | | ????????????# ###"######### #?? ???????????? | | ????????????# ## ## #? ????????????? | | ????????????" ## ## ## ?????????????? | | ???????????## ## # ! ####/##?????????? | | ????????????# ## ^# ###* #?????????? | | ????????????# ## +[ % % #?????????? | | ????????????# ##! # ###= ###???????? | | ????????????# ## = # ###" ## #???????? | | ????????????# ## ### ###?##[####???????? | | ????????????#+#+##############+###### # #????????? | | ???????????????????????# # ## #???????? | | ???????????????????????# # #?##???????? | | ???????????????????????# """ """ # ############ | | ???????????????????????# """ """ # =[%! | | ???????????????????????# """ """ # = | | ???????????????????????# + A | | ???????????????????????# """ """ # | | ???????????????????????# """ """ # | | ???????????????????????? ?"" ??? ####/######### | +----------------------------------------------------+ Best States ------------- Heat Dissipation 126 Coolant Potential 100 Energy Generation 59 Energy Capacity 815 Matter Stores 300 Matter Capacity 700 Sight Range 16 Robot Scan Range 18 Terrain Scan Density 10 Jamming Range 16 Armor Coverage 450 Evasion (%) 82 Targeting Accuracy 12 Core Analysis 6 Recoil Reduction 2 Offensive Hacking 14 Item Schematics ----------------- Hcp. Storage Unit | -10/Materials | Hacked Huge Storage Unit | -10/Materials | Hacked Salvage Targeting Computer | -9/Materials | Hacked Imp. Signal Interpreter | -8/Materials | Hacked Adv. Targeting Computer | -8/Materials | Hacked Plasma Cutter | -8/Materials | Scanalyzed Core Analyzer | -8/Materials | Scanalyzed Combat Drone Bay | -6/Data Miner | Free Lgt. Regenerative Plating | -6/Data Miner | Free Enh. Armored Leg | -6/Data Miner | Free Prc. Matter Filter | -6/Data Miner | Free Kinetic Spear | -6/Data Miner | Free Imp. Linear Gravjet | -6/Data Miner | Free Graphene Brace | -6/Data Miner | Free Hardcell Cannon | -6/Data Miner | Free Adv. Sensor Array | -5/Factory | Hacked Adv. Myomer Leg | -4/Factory | Scanalyzed Robot Schematics ------------------ M-22 Extractor | -6/Data Miner | Free B-48 Gladiator | -6/Data Miner | Free S-27 Virus | -6/Data Miner | Free L-41 Fighter | -6/Data Miner | Free Fabricated ------------ Adv. Targeting Computer | x2 | -4/Factory Enh. Nova Cannon | x2 | -4/Factory | Preloaded Repaired ---------- Carbon-fiber Leg | 57% | -9/Materials Imp. Light Armor Plating | 37% | -9/Materials Ion Cannon | 65% | -9/Materials Hrd. Medium Armor Plating | 76% | -8/Materials Imp. Deuterium Engine | 48% | -8/Materials Hrd. Medium Armor Plating | 80% | -8/Materials Imp. Carbon-fiber Leg | 31% | -8/Materials Hrd. Medium Armor Plating | 46% | -8/Materials Carbon-fiber Leg | 73% | -8/Materials Hvy. Ion Cannon | 37% | -8/Storage Hrd. Medium Armor Plating | 45% | -8/Storage Multireflex Exoskeleton | 85% | -6/Factory | Broken Alien Tech Used ----------------- None Achievements -------------- None Challenges ------------ None Game ------ Seed MetaFlakExtrapolator Manual? 0 Play Time 03:01:45 Cumulative 1996.8 hours Start 2024.11.09 @ 11:05:19 End 2024.11.09 @ 15:39:38 Sessions 1 Manual Loads 0 Difficulty Rogue Special Mode None Game No. 688 Rogue 688 Adventurer 0 Explorer 0 Win Type - Total 155 Types 31/14/65/7/1/2/33/1/1 Lore% 87 Gallery% 95 Achievement% 88 Wizard Run 0 Options --------- Layout 0 ASCII 0 Keyboard 0 Movement Numpad Keybinds 0 Fullscreen 2 Font 18/SmallcapsGlow Map View 76x50 Zoom Use 0% Tactical HUD 1 Map Filters NONE Filters NONE Steam 1 RUN: 94d50685-6278-4e6c-8f27-1acf9386f35f